Cogmind - Beta 16 --- EXPLORER MODE // 2025.12.19 @ 05:13:16 Player: viper Result: Destroyed by K9-NF5(R) with Subdweller Laser Performance ------------- Evolutions (0) 0 Regions Visited (2) 400 Robots Destroyed (26) 130 Value Destroyed (558) 558 Prototype IDs (4) 80 Alien Tech Used (0) 0 Bonus (0) 0 TOTAL SCORE: 1168 Bonus ------- None Cogmind --------- Core Integrity 0/250 Matter 300/300 Energy 100/100 System Corruption 2% Temperature Cool (6) Movement Core (1450) Ox28 Location -10/Subcaves Parts ------- > --- POWER (1) -------- (None) > --- PROPULSION (2) --- (None) > --- UTILITY (3) ------ Huge Storage Unit Core Shielding Core Shielding > --- WEAPON (2) ------- Subdweller Laser > --- INVENTORY (25) --- Light Ion Engine Light Ion Engine Aluminum Leg Aluminum Leg Aluminum Leg Aluminum Leg Improved Heat Sink High-capacity Storage Unit Medium Matter Pod (100) High-capacity Matter Pod (200) Signal Interpreter Peak State ------------ > --- POWER ------------ Light Nuclear Core > --- PROPULSION ------- Aluminum Leg Aluminum Leg > --- UTILITY ---------- Huge Storage Unit Core Shielding Core Shielding > --- WEAPON ----------- EM Pulse Gun Subdweller Laser > --- INVENTORY -------- Light Ion Engine Light Ion Engine Aluminum Leg Aluminum Leg Aluminum Leg Aluminum Leg Improved Heat Sink High-capacity Storage Unit Medium Matter Pod High-capacity Matter Pod Signal Interpreter Mining Laser [Rating: 12] Favorites ----------- Power Light Nuclear Core Engine Light Ion Engine Power Core Light Nuclear Core Propulsion Aluminum Leg Leg Aluminum Leg Utility Core Shielding Device Terrain Scanner Storage Huge Storage Unit Protection Core Shielding Weapon Assault Rifle Energy Gun Subdweller Laser Ballistic Gun Assault Rifle Special Weapon Mining Laser Build | -11 -10 -10 ------- Run | Yrd Mat Sub Slots Evolved 1 | . 1 . Power . | . . . Propulsion . | . . . Utility 1 | . 1 . Weapon . | . . . Parts Attached 18 | 7 7 4 Power 2 | 1 1 . Engine 1 | 1 . . Core 1 | . 1 . Reactor . | . . . Propulsion 5 | 2 3 . Treads . | . . . Leg 5 | 2 3 . Wheel . | . . . Hover . | . . . Flight . | . . . Utility 6 | 2 3 1 Device 1 | . 1 . Storage 3 | 1 2 . Processor . | . . . Hackware . | . . . Protection 2 | 1 . 1 Artifact . | . . . Weapon 5 | 2 . 3 Energy Gun 2 | . . 2 Energy Cannon . | . . . Ballistic Gun 2 | 2 . . Ballistic Cannon . | . . . Launcher . | . . . Special Weapon 1 | . . 1 Impact Weapon . | . . . Slashing Weapon . | . . . Piercing Weapon . | . . . Special Melee Weapon . | . . . Unidentified Prototypes . | . . . Parts Lost 8 | . . 8 Power 1 | . . 1 Propulsion 2 | . . 2 Utility 1 | . . 1 Weapon 4 | . . 4 Highest Loss Streak 3 | . . 3 To Critical Strikes . | . . . Average Backups 11 | 2 11 13 Power 1 | . 1 2 Propulsion 2 | . 2 4 Utility 5 | 1 5 5 Weapon 1 | . 1 1 Tool/Special . | . . . Unused Backups 6 | . . 6 Power 1 | . . 1 Propulsion 1 | . . 1 Utility 4 | . . 4 Weapon . | . . . Tool/Special . | . . . Average Slot Usage (%) 99 | . 99 97 Engine 1 | . 1 . Core 10 | . 10 10 Leg 24 | . 24 24 Device 11 | . 12 9 Storage 12 | . 12 12 Protection 12 | . 12 15 Ballistic Gun 23 | . 24 18 Peak Build Rating 12 | 7 11 12 Average Rating 10 | 5 10 10 On Entrance 6 | . 7 11 Avg Prop Armor Cover (%) 7 | . 7 . Naked Turns . | . . . Heaviest Build 93 | 18 91 93 Greatest Support 20 | 20 20 20 Greatest Overweight (x) 9 | 2 9 4 Average Overweight (x) 4 | . 4 4 Largest Inventory Capacity 25 | 10 25 25 Average Capacity 23 | 8 23 25 Most Carried 15 | 5 14 15 Average Carried 11 | 2 11 13 Final Capacity 25 | 10 25 25 Final Carried 14 | 5 14 11 Class Distribution -------------------- 100% | Hacker-Mutant Dominant Class ---------------- Hacker-Mutant | -10/Materials Hacker-Mutant | -10/Subcaves Resources | -11 -10 -10 ----------- Run | Yrd Mat Sub Matter Collected 1194 | 203 876 115 Remotely . | . . . Salvage Created 978 | . 819 159 Parts 60 | . 51 9 Haulers Intercepted 2 | . 2 . Recyclers Shooed 6 | . 6 . Parts Field Recycled . | . . . Retrieved Matter . | . . . Parts Self-Destructed . | . . . Prevented . | . . . Parts Restored . | . . . Kills | -11 -10 -10 ------- Run | Yrd Mat Sub Combat Hostiles Destroyed 14 | . 11 3 Guns 14 | . 11 3 Classes Destroyed 8 | . 7 1 Worker 4 | . 4 . Builder 1 | . 1 . Hauler 2 | . 2 . Recycler 2 | . 2 . Watcher 3 | . 3 . Swarmer 2 | . 2 . Grunt 9 | . 9 . Subdweller 3 | . . 3 Best Kill Streak 5 | . 5 1 Combat Bots Only 5 | . 5 1 Max Kills in Single Turn 2 | . 2 1 Gunslinging . | . . . Exploded . | . . . Melee . | . . . Uniques/NPCs Destroyed . | . . . Combat | -11 -10 -10 -------- Run | Yrd Mat Sub Hostile Shots Fired 143 | . 58 85 Missed 36 | . 16 20 Hits 107 | . 42 65 Projectile 107 | . 42 65 Critical Strikes 1 | . . 1 Damage Taken 1121 | . 293 828 Core 251 | . 65 186 Absorbed by Shields . | . . . Redirected to Shielding 45 | . 11 34 Ignored by Resistances 681 | . 185 496 Regen/Repaired (Parts) 116 | . 116 . Core Remaining (%) 100 | 100 . . Volleys Fired 108 | . 71 37 Largest 2 | . 2 2 Hottest 100 | . 40 100 Shots Fired 206 | . 142 64 Gun 206 | . 142 64 Cannon . | . . . Launcher . | . . . Special . | . . . Kinetic 173 | . 142 31 Thermal 19 | . . 19 Explosive . | . . . Electromagnetic 14 | . . 14 Robot Hit Streak 65 | . 18 65 Robot Miss Streak 3 | . 3 . Penetration Max . | . . . Secondary Targets 4 | . 3 1 Max Gunslinging Chain 1 | . 1 1 Shots Hit Robots 175 | . 111 64 Core Hits 50 | . 42 8 Critical Kills . | . . . Critical Parts Destroyed . | . . . Critical Strikes . | . . . Melee Attacks . | . . . Impact . | . . . Slashing . | . . . Piercing . | . . . Sneak Attacks . | . . . Combat Hostiles . | . . . Follow-up Attacks . | . . . Damage Inflicted 2018 | . 1442 576 Guns 1993 | . 1434 559 Cannons . | . . . Explosions . | . . . Melee . | . . . Ramming 25 | . 8 17 Kinetic 1641 | . 1434 207 Thermal 286 | . . 286 Explosive . | . . . Electromagnetic 66 | . . 66 Impact . | . . . Slashing . | . . . Piercing . | . . . Highest Corruption 2 | . 2 2 Average Corruption 1 | . 1 2 Corruption Purged . | . . . Corruption Blocked . | . . . Effects 46 | . 35 11 Message Errors 13 | . 10 3 Matter Fused 6 | . 3 3 Heat Flow Errors 9 | . 8 1 Energy Discharges 4 | . 4 . Parts Rejected 1 | . 1 . Data Loss (minor) 9 | . 5 4 Data Loss (major) 2 | . 2 . Misfires 1 | . 1 . Weapon Failures 1 | . 1 . Overload Shots . | . . . Overflow Damage . | . . . Projectiles . | . . . Explosions . | . . . Melee . | . . . Knockbacks . | . . . Impact . | . . . Kinetic . | . . . Secondary . | . . . Self-Inflicted Damage . | . . . Shots . | . . . Rammed 1 | . . 1 Targets Rammed 14 | . 2 12 Kicked 13 | . 2 11 Crushed . | . . . Highest Temperature 281 | . 281 167 Average Temperature 66 | . 72 40 Received Heat Transfer 645 | . 255 390 Effects 1 | . 1 . Energy Bleed 1 | . 1 . Siege Activations . | . . . Martial Activations . | . . . Shielding Activations . | . . . Robots Disrupted . | . . . Combat Hostiles . | . . . Robots Corrupted . | . . . Combat Hostiles . | . . . Parts Fried . | . . . Impact Corruptions . | . . . Robots Melted . | . . . Combat Hostiles . | . . . Parts Melted . | . . . Heat Transferred 350 | . . 350 Parts Sabotaged . | . . . Parts Stolen . | . . . Parts Stripped . | . . . Power Chain Reactions . | . . . Alert | -11 -10 -10 ------- Run | Yrd Mat Sub Maximum Alert Level . | . . . Low Security (%) 100 | 100 100 . Level 1 . | . . . Level 2 . | . . . Level 3 . | . . . Level 4 . | . . . Level 5 . | . . . High Security . | . . . Max Security . | . . . Peak Influence 91 | . 91 . Initial . | . . . Average 4 | . 4 . Influence Increases 355 | . 355 . Destroy 0b10 Robot/C 220 | . 220 . Destroy 0b10 Robot/NC 60 | . 60 . Destroy Leader 60 | . 60 . Successful Hack 13 | . 13 . Destroy Structure 2 | . 2 . Influence Decreases 355 | . 355 . Time Decay 355 | . 355 . Squads Dispatched 1 | . 1 . Investigation 1 | . 1 . Extermination . | . . . Reinforcement . | . . . Assault . | . . . Garrison . | . . . Intercept . | . . . Searches Triggered . | . . . Construction Impeded . | . . . Haulers Reinforced . | . . . Active Scanning Responses . | . . . Cargo Convoy Interrupts . | . . . Stealth | -11 -10 -10 --------- Run | Yrd Mat Sub Distress Signals 1 | . 1 . Communications Jammed . | . . . Distress Signals . | . . . Times Spotted 34 | . 30 4 Peak Tracking Total 4 | . 4 2 Tactical Retreats . | . . . Traps | -11 -10 -10 ------- Run | Yrd Mat Sub Traps Triggered 2 | . 2 . Indirectly . | . . . Trap Hack Attempts . | . . . Triggered . | . . . Disarmed . | . . . Reprogrammed . | . . . Reused . | . . . Traps Extracted . | . . . Installed . | . . . Triggered . | . . . Machines | -11 -10 -10 ---------- Run | Yrd Mat Sub Machines Disabled . | . . . Max in Single Turn . | . . . Machines Repaired . | . . . Machines Dismantled . | . . . Machines Sabotaged . | . . . Overloaded Fab Kills . | . . . Hacking | -11 -10 -10 --------- Run | Yrd Mat Sub Machines Accessed 8 | . 8 . Terminals 7 | . 7 . Fabricators . | . . . Repair Stations 1 | . 1 . Recycling Units . | . . . Scanalyzers . | . . . Garrison Access . | . . . Total Hacks 35 | . 35 . Successful 32 | . 32 . Failed 3 | . 3 . Catastrophic . | . . . Database Lockouts . | . . . Manual 2 | . 2 . Terminals 29 | . 29 . Fabricators . | . . . Repair Stations 6 | . 6 . Recycling Units . | . . . Scanalyzers . | . . . Garrison Access . | . . . Terminal Hacks 26 | . 26 . Record 9 | . 9 . Robot Analysis 1 | . 1 . Prototype ID Bank 2 | . 2 . Level Access Points 1 | . 1 . Locate Traps 3 | . 3 . Maintenance Status 3 | . 3 . Surveillance Status 1 | . 1 . Investigation Status 1 | . 1 . Recall Investigation 1 | . 1 . Hauler Manifests 1 | . 1 . Registered Components 1 | . 1 . Zone Layout 2 | . 2 . Fabricator Hacks . | . . . Repair Station Hacks 6 | . 6 . Scan Component 3 | . 3 . Repair 3 | . 3 . Recycling Unit Hacks . | . . . Scanalyzer . | . . . Garrison Access Hacks . | . . . Unauthorized Hacks . | . . . Terminals . | . . . Fabricators . | . . . Repair Stations . | . . . Recycling Units . | . . . Scanalyzers . | . . . Garrison Access . | . . . Data Cores Recovered . | . . . Used . | . . . Hacking Detections 7 | . 7 . Full Trace Events 3 | . 3 . Feedback Events 1 | . 1 . Corruption 1 | . 1 . Feedback Blocked . | . . . Robot Schematics Acquired . | . . . Robots Built . | . . . Authchips . | . . . Time . | . . . Total Robot Build Rating . | . . . Part Schematics Acquired . | . . . Parts Built . | . . . Authchips . | . . . Time . | . . . Total Part Build Rating . | . . . Part Studies Acquired . | . . . Parts Repaired 3 | . 3 . Time 78 | . 78 . Parts Recycled . | . . . Recycled Matter . | . . . Retrieved Matter . | . . . Retrieved Components . | . . . Parts Scanalyzed . | . . . Part Schematics Acquired . | . . . Parts Damaged . | . . . Bothacking | -11 -10 -10 ------------ Run | Yrd Mat Sub Used RIF Installer . | . . . Robots Hacked . | . . . Non-combat . | . . . Combat . | . . . Robot Hacks Applied . | . . . Relay Couplers Released . | . . . Fabnet Peak Effective % . | . . . Robots Rewired . | . . . Allies Hacked . | . . . Hacks Repelled . | . . . Allies | -11 -10 -10 -------- Run | Yrd Mat Sub Total Allies . | . . . Largest Group . | . . . Highest-Rated Group . | . . . Highest-Rated Ally . | . . . Total Orders . | . . . Ally Attacks . | . . . Total Damage . | . . . Kills . | . . . Allies Corrupted . | . . . Allies Melted . | . . . Intel | -11 -10 -10 ------- Run | Yrd Mat Sub Active Infowar (turns) 3903 | . 3459 444 Terrain 3903 | . 3459 444 Robot Analysis Total 1 | . 1 . Derelict Logs Recovered . | . . . Drone Launches . | . . . Drone Recoveries . | . . . Exploration | -11 -10 -10 ------------- Run | Yrd Mat Sub Turns Passed 4136 | 77 3460 599 Spaces Moved 868 | 55 714 99 Core 15 | 15 . . Treads . | . . . Legs 853 | 40 714 99 Wheels . | . . . Hover . | . . . Flight . | . . . Fastest Speed 50 | 50 120 400 Average Speed 411 | 113 435 400 Slowest Speed 750 | 150 750 400 Overloaded Moves . | . . . Propulsion Burnouts . | . . . Robots Hopped . | . . . Potential Cave-ins . | . . . Cave-ins Triggered . | . . . Exploration Rate (%) 37 | 3 98 12 Regions Visited 2 Branch Regions 1 Pre-discovered Areas . | . . . Known Exits Taken 2 | 1 1 . Unknown Exits Taken . | . . . Scrap Searched . | . . . Spaces Dug . | . . . Terrain Destroyed . | . . . Melee . | . . . Projectile . | . . . AOE . | . . . Terrain Rammed . | . . . Walls Destroyed . | . . . Machines Disabled . | . . . Actions | -11 -10 -10 --------- Run | Yrd Mat Sub Total 1171 | 66 911 194 Wait 149 | . 108 41 Move 866 | 54 713 99 Hop . | . . . Pick Up 11 | 5 5 1 Fast Attach 11 | 7 4 . Attach 5 | . 1 4 Detach . | . . . Swap 6 | . 6 . Drop 1 | . 1 . Fire 108 | . 71 37 Melee . | . . . Ram 1 | . . 1 Kick 13 | . 2 11 Crush . | . . . Escape Stasis . | . . . Rewire . | . . . Trap . | . . . Miscellaneous . | . . . Route ------- -11/Scrapyard -10/Materials (discovered 6 exits: *Mat x3 / *Min x2 / *Sub) -10/Subcaves History --------- Turn | Location | Event 5 | -11/Scrapyard | Identified exit to Materials 5 | -11/Scrapyard | Discovered exit to Materials (range 16) 78 | -11/Scrapyard | Entered Materials 78 | -10/Materials | Evolved 1 slot: Utility x1 184 | -10/Materials | Identified exit to Mines 184 | -10/Materials | Discovered exit to Mines (range 12) 308 | -10/Materials | Build established: Hacker-Mutant 383 | -10/Materials | Identified exit to Materials 383 | -10/Materials | Discovered exit to Materials (range 15) 553 | -10/Materials | Repaired Lgt. Ion Engine 672 | -10/Materials | Repaired Assault Rifle 700 | -10/Materials | Repaired Assault Rifle 900 | -10/Materials | Discovered exit to Mines (range 12) 3496 | -10/Materials | Identified exit to Subcaves 3496 | -10/Materials | Discovered exit to Subcaves (range 5) 3538 | -10/Materials | Entered Subcaves 3539 | -10/Subcaves | Approached by a straggling Scientist 4017 | -10/Subcaves | Lost 3 parts (1u2w) 4090 | -10/Subcaves | Core integrity fell below 50% 4130 | -10/Subcaves | Core integrity fell below 20% 4137 | -10/Subcaves | Destroyed by K9-NF5(R) with Subdweller Laser Last Messages --------------- 04092_ Subatomizers dissect the Disposable Heat Sink. 04094_ Kicked K9-NF5(R). 04107_ Subatomizers dissect the Disposable Heat Sink. 04110_ Kicked K9-NF5(R). 04113_ Mining Laser destroyed. 04114_ Kicked K9-NF5(R). 04117_ Subatomizers dissect the Disposable Heat Sink. 04118_ Kicked K9-NF5(R). 04121_ Aluminum Leg destroyed. 04122_ Kicked K9-NF5(R). 04125_ Aluminum Leg destroyed. 04127_ Subatomizers dissect the Disposable Heat Sink. 04129_ Slammed into K9-NF5(R). 04131_ EG-II2(u) builds Twisted Machinery. 04137_ Subatomizers dissect the Disposable Heat Sink, destroying it. Map ----- +----------------------------------------------------+ | ?????? ## #?#????????#???????????????? | | ?????? #??????#?#?##??????????????? | | ?????? #####?#?#??????????????????? | | ???????# ## ##???#??#??????????????? | | ???????????### ###?#?????????????????? | | ?????????????## ##### % #????????????????????? | | ??????????????##????## % ###??????????????????? | | ??????????????#??????## ##???????#???????????? | | ????????????#???????### ##?????????#??????????? | | ????????????????????## #?#?##??#?????????????? | | ???????????#??????#??# % ###?? #????????????????? | | ?????????????????#??#### ##?? #?#??????????????? | | ?????????????########### #? #????????????????? | | ??????????????#?# "# ## # ##?##????????????? | | ???????????????## " " !## ## "#??????????? | | ????????????????# #"""#"&%# "#???????????? | | ????????????????# !&! " " #???????????? | | ?????????????#??# "####??????????????? | | ??????????????#?# # ## ## ##?????? ??????????? | | ????????????????### ######?# #??????????????????? | | ???????????? ???# ####### ##?#????????????????? | | ??????????# ???# ##???#???????????????? | | ???????????# ## #??? #??????????????? | | ??????????## "### #??????????????? | | ???????????# ! " " " #??????????????? | | ?????????"?# ## R@ """ " #???????????????? | | ???????????# #?## &%u "" ##???????????????? | | ???????????## #???## ! """#????????????????? | | ????????????# ?????## " ##????????????????? | | ????????????##???? ###" """??????????????? | | ?????????????## ##??# #???????????????? | | ?????????#????# # ### #???? ###???????????????? | | ??????????????#??#???# ##????? ????????????????? | | ??????????????????#??###?????? ???????????????? | | ????????????????? ?????????? ? ??????????????? | | ????????????? ?????????????????? ??????????????? | | ?????????????? ???????????????????? ?????????????? | | ?????????????????????????????????????????????????? | | ?????????????????????????????????????????????????? | | ?????????????????????????????????????????????????? | | ?????????????????????????????????????????????????? | | ?????????????????????????????????????????????????? | | ?????????????????????????????????????????????????? | | ?????????????????????????????????????????????????? | | ?????????????????????????????????????????????????? | | ?????????????????????????????????????????????????? | | ?????????????????????????????????????????????????? | | ?????????????????????????????????????????????????? | | ?????????????????????????????????????????????????? | | ?????????????????????????????????????????????????? | +----------------------------------------------------+ Best States ------------- Heat Dissipation 25 Energy Generation 14 Energy Capacity 160 Matter Stores 300 Matter Capacity 300 Sight Range 16 Terrain Scan Range 14 Terrain Scan Density 10 Resistance: KI 35 Resistance: TH 35 Resistance: EX 35 Resistance: EM 35 Resistance: I 35 Resistance: S 35 Resistance: P 35 Core Shielding 20 Evasion (%) 55 Offensive Hacking 20 Item Schematics ----------------- None Robot Schematics ------------------ None Fabricated ------------ Nothing Repaired ---------- Lgt. Ion Engine | 50% | -10/Materials Assault Rifle | 41% | -10/Materials Assault Rifle | 63% | -10/Materials Studied --------- None Alien Tech Used ----------------- None Achievements -------------- None Challenges ------------ None Game ------ Seed GunShockModule Manual? 0 Play Time 00:17:01 Cumulative 2215.3 hours Start 2025.12.19 @ 04:59:06 End 2025.12.19 @ 05:13:16 Sessions 1 Manual Loads 0 Difficulty Explorer Special Mode None Game No. 1081 Rogue 62 Adventurer 0 Explorer 1019 Win Type - Total 11 Types 11/0/0/0/0/0/0/0/0/0 Lore% 64 Gallery% 72 Achievement% 47 Wizard Run 0 Options --------- Layout 1 ASCII 0 Keyboard 0 Movement Numpad Keybinds 0 Fullscreen 1 Font 48/Smallcaps Map View 50x35 Zoom Use 0% Tactical HUD 1 Map Filters NONE Filters NONE Steam 1 RUN: c0aaacb2-5ad2-49af-be4e-a72a07e6abc5